Workbook

Sheet 汇总
A1: 理学院2022级本科生学科竞赛认定结果
A2: 序号 | B2: 姓名 | C2: 学号 | D2: 专业 | E2: 班级 | F2: 总分
A3: =ROW()-2 -> 1 | B3: 徐圆 | C3: 2022010502 | D3: 数学与应用数学 | E3: 数学22-1班 | F3: 0.6
A4: 2 | B4: 王俊雅 | C4: 2022010582 | D4: 数学与应用数学 | E4: 数学22-1班 | F4: 0.52
A5: 3 | B5: 王唯琛 | C5: 2022011750 | D5: 数学与应用数学 | E5: 数学22-1班 | F5: =VLOOKUP(B5,明细!B3:M67,12,0) -> 0.02
A6: 4 | B6: 孙孜璇 | C6: 2022011780 | D6: 数学与应用数学 | E6: 数学22-1班 | F6: 0.375
A7: 5 | B7: 张书妍 | C7: 2022011782 | D7: 数学与应用数学 | E7: 数学22-1班 | F7: 0.6525
A8: 6 | B8: 姚佳乐 | C8: 2022011797 | D8: 数学与应用数学 | E8: 数学22-1班 | F8: 1.97
A9: 7 | B9: 文超 | C9: 2022010047 | D9: 统计学 | E9: 统计22-1班 | F9: 0.345
A10: 8 | B10: 冯箫 | C10: 2022011740 | D10: 统计学 | E10: 统计22-1班 | F10: 0.6
A11: 9 | B11: 唐畅 | C11: 2022011741 | D11: 统计学 | E11: 统计22-1班 | F11: 0.62
A12: 10 | B12: 韩静文 | C12: 2022011745 | D12: 统计学 | E12: 统计22-1班 | F12: 0.1875
A13: 11 | B13: 张伟楼 | C13: 2022011758 | D13: 统计学 | E13: 统计22-1班 | F13: 0.6
A14: 12 | B14: 吴炅 | C14: 2022011767 | D14: 统计学 | E14: 统计22-1班 | F14: 0.8625
A15: 13 | B15: 李濛孜 | C15: 2022011777 | D15: 统计学 | E15: 统计22-1班 | F15: 2
A16: 14 | B16: 宋瑞瑞 | C16: 2022011800 | D16: 应用化学 | E16: 应化22-1班 | F16: 3
A17: 15 | B17: 巨博雅 | C17: 2022011806 | D17: 应用化学 | E17: 应化22-1班 | F17: 0.8475
A18: 16 | B18: 庞金平 | C18: 2022011810 | D18: 应用化学 | E18: 应化22-1班 | F18: 3
A19: 17 | B19: 周紫来 | C19: 2022011812 | D19: 应用化学 | E19: 应化22-1班 | F19: 1.2
A20: 18 | B20: 张津荣 | C20: 2022011814 | D20: 应用化学 | E20: 应化22-1班 | F20: 1
A21: 19 | B21: 张科萌 | C21: 2022011816 | D21: 应用化学 | E21: 应化22-1班 | F21: 2.79
A22: 20 | B22: 邓楠 | C22: 2022011840 | D22: 应用化学 | E22: 应化22-2班 | F22: 3
A23: 21 | B23: 闫鼎睿 | C23: 2022011850 | D23: 应用化学 | E23: 应化22-2班 | F23: 3
A24: 22 | B24: 龚卓洋 | C24: 2022011856 | D24: 应用化学 | E24: 应化22-2班 | F24: 3
A25: 23 | B25: 陈凯炫 | C25: 2022011859 | D25: 应用化学 | E25: 应化22-2班 | F25: 3
A26: 24 | B26: 冯家乐 | C26: 2022011861 | D26: 应用化学 | E26: 应化22-2班 | F26: 3
A27: 25 | B27: 徐楷钦 | C27: 2022011864 | D27: 应用化学 | E27: 应化22-2班 | F27: 1
A28: 26 | B28: 张成基 | C28: 2022011867 | D28: 应用化学 | E28: 应化22-2班 | F28: 2.29
A29: 27 | B29: 张浩东 | C29: 2022011868 | D29: 应用化学 | E29: 应化22-2班 | F29: 3

Sheet 明细
A1: 理学院2022级本科生学科竞赛认定结果
A2: 序号 | B2: 姓名 | C2: 学号 | D2: 专业 | E2: 班级 | F2: 竞赛名称 | G2: 竞赛类别 | H2: 获奖级别 | I2: 比赛是否设有特等奖 | J2: 特等奖是否唯一 | K2: 总分 | L2: 排序 | M2: 赋分
A3: =ROW()-2 -> 1 | B3: 王唯琛 | C3: 2022011750 | D3: 数学与应用数学 | E3: 数学22-1班 | F3: 2024年-中国大学生创新设计大赛北京市一等奖-智能沼源--A1+固体废弃物智慧处理大模型 | G3: A类 | H3: 省部级 | K3: 3 | L3: 9/13 | M3: 0.02
A4: =ROW()-2 -> 2 | B4: 孙孜璇 | C4: 2022011780 | D4: 数学与应用数学 | E4: 数学22-1班 | F4: 2025年青创北京挑战杯首都大学生课外学术科技作品竟赛 “青振京郊”专项赛金奖 | G4: A类 | H4: 省部级 | K4: 3 | L4: 3/9 | M4: =K4/8 -> 0.375
A5: =ROW()-2 -> 3 | B5: 徐圆 | C5: 2022010502 | D5: 数学与应用数学 | E5: 数学22-1班 | F5: 全国大学生英语竞赛三等奖 | G5: C类 | H5: 国家级 | I5: 是 | J5: 否 | K5: 0.6 | L5: 1/1 | M5: 0.6
A6: =ROW()-2 -> 4 | B6: 张书妍 | C6: 2022011782 | D6: 数学与应用数学 | E6: 数学22-1班 | F6: 2024年中国大学生创新设计大赛北京市二等奖-润疆--做“一带一路”传统文化低碳产品的探索者 | G6: A类 | H6: 省部级 | K6: 2.4 | L6: 3/12 | M6: =K6/8 -> 0.3
A7: 5 | B7: 张书妍 | C7: 2022011782 | D7: 数学与应用数学 | E7: 数学22-1班 | F7: 2024年中国大学生创新设计大赛北京市三等奖-滤方科技--高效甲烷及炭烟颗粒物减排技术引领者 | G7: A类 | H7: 省部级 | K7: 1.5 | L7: 8/10 | M7: 0.02
A8: 6 | B8: 张书妍 | C8: 2022011782 | D8: 数学与应用数学 | E8: 数学22-1班 | F8: 2024年-中国大学生创新设计大赛北京市三等奖-绿能绿存--近零碳中高温智能储热装置 | G8: A类 | H8: 省部级 | K8: 1.5 | L8: 7/15 | M8: 0.02
A9: 7 | B9: 张书妍 | C9: 2022011782 | D9: 数学与应用数学 | E9: 数学22-1班 | F9: 2024年中国大学生创新设计大赛北京市三等奖-虚拟铸魂重现铁人一基于虚拟现实技术打造沉浸式体验红色教育基地 | G9: A类 | H9: 省部级 | K9: 1.5 | L9: 4/13 | M9: =K9/12 -> 0.125
A10: 8 | B10: 张书妍 | C10: 2022011782 | D10: 数学与应用数学 | E10: 数学22-1班 | F10: “青创北京”2024年“挑战杯’首都大学生创业计划竞赛“青绘京彩”文旅创意专项赛铜奖-京西古韵，水峪新篇--以水峪嘴村京西古道为核心的文化创意旅游产业发展探索 | G10: A类 | H10: 省部级 | K10: 1.5 | L10: 3/10 | M10: =K10/8 -> 0.1875
A11: 9 | B11: 姚佳乐 | C11: 2022011797 | D11: 数学与应用数学 | E11: 数学22-1班 | F11: 2024年中国大学生创新设计大赛北京市三等奖-虚拟铸魂重现铁人一基于虚拟现实技术打造沉浸 式体验红色教育基地 | G11: A类 | H11: 省部级 | K11: 1.5 | L11: 6/13 | M11: 0.02
A12: 10 | B12: 姚佳乐 | C12: 2022011797 | D12: 数学与应用数学 | E12: 数学22-1班 | F12: 2025年中国大学生创新设计大赛北京市三等奖-绿能绿存--近零碳中高温智能储热装置 | G12: A类 | H12: 省部级 | K12: 1.5 | L12: 1/10 | M12: =K12/2 -> 0.75
A13: 11 | B13: 姚佳乐 | C13: 2022011797 | D13: 数学与应用数学 | E13: 数学22-1班 | F13: 2024年中国大学生创新设计大赛北京市二等奖-绿能先锋--实现工业能耗碳双控新方案 | G13: A类 | H13: 省部级 | K13: 2.4 | L13: 1/9 | M13: =K13/2 -> 1.2
A14: 12 | B14: 王俊雅 | C14: 2022010582 | D14: 数学与应用数学 | E14: 数学22-1班 | F14: 2025年中国大学生创新设计大赛北京市三等奖-智图科技--总图布局优化先行者 | G14: A类 | H14: 省部级 | K14: 1.5 | L14: 4/4 | M14: =K14/12 -> 0.125
A15: 13 | B15: 王俊雅 | C15: 2022010582 | D15: 数学与应用数学 | E15: 数学22-1班 | F15: 2025年中国大学生创新设计大赛北京市三等奖-氢链智网--风光氢氨醇领航者 | G15: A类 | H15: 省部级 | K15: 1.5 | L15: 9/10 | M15: 0.02
A16: =ROW()-2 -> 14 | B16: 王俊雅 | C16: 2022010582 | D16: 数学与应用数学 | E16: 数学22-1班 | F16: 2024年中国大学生创新设计大赛北京市三等奖-智图科技--总图布局优化领航者 | G16: A类 | H16: 省部级 | K16: 1.5 | L16: 2/14 | M16: =K16/4 -> 0.375
A17: 15 | B17: 文超 | C17: 2022010047 | D17: 统计学 | E17: 统计22-1班 | F17: 2023年青创北京挑战杯北京市二等奖-基于乡村振兴背景下生态文化环境民宿的发展与规划--以潭柘寺镇民宿发展规划为例 | G17: A类 | H17: 省部级 | K17: 2.4 | L17: 4/8 | M17: =K17/12 -> 0.2
A18: 16 | B18: 文超 | C18: 2022010047 | D18: 统计学 | E18: 统计22-1班 | F18: 2024年挑战杯北京市三等奖-安泓智防--数字科学赋能引领消防水系统诊断技术 | G18: A类 | H18: 省部级 | K18: 1.5 | L18: 4/4 | M18: =K18/12 -> 0.125
A19: 17 | B19: 文超 | C19: 2022010047 | D19: 统计学 | E19: 统计22-1班 | F19: 2024年中国大学生创新设计大赛北京市二等奖-安泓智防--消防水系统多点故障诊断技术引领者 | G19: A类 | H19: 省部级 | K19: 2.4 | L19: 10/11 | M19: 0.02
A20: 18 | B20: 张伟楼 | C20: 2022011758 | D20: 统计学 | E20: 统计22-1班 | F20: 全国大学生物理实验竞赛全国优秀奖 | G20: B类 | H20: 国家级 | K20: 1.2 | L20: 1/3 | M20: =K20/2 -> 0.6
A21: 19 | B21: 李濛孜 | C21: 2022011777 | D21: 统计学 | E21: 统计22-1班 | F21: 全国大学生英语竞赛特等奖 | G21: C类 | H21: 国家级 | I21: 是 | J21: 否 | K21: 2 | L21: 1/1 | M21: 2
A22: =ROW()-2 -> 20 | B22: 冯箫 | C22: 2022011740 | D22: 统计学 | E22: 统计22-1班 | F22: 全国大学生英语竞赛三等奖 | G22: C类 | H22: 国家级 | I22: 是 | J22: 否 | K22: 0.6 | L22: 1/1 | M22: 0.6
A23: 21 | B23: 唐畅 | C23: 2022011741 | D23: 统计学 | E23: 统计22-1班 | F23: 2024年中国大学生创新设计大赛北京市二等奖-绿能先锋--实现工业能耗碳双控新方案 | G23: A类 | H23: 省部级 | K23: 2.4 | L23: 2/9 | M23: =K23/4 -> 0.6
A24: 22 | B24: 唐畅 | C24: 2022011741 | D24: 统计学 | E24: 统计22-1班 | F24: 2024年中国大学生创新设计大赛北京市三等奖-虚拟铸魂重现铁人一基于虚拟现实技术打造沉浸式体验红色教育基地 | G24: A类 | H24: 省部级 | K24: 1.5 | L24: 8/13 | M24: 0.02
A25: 23 | B25: 韩静文 | C25: 2022011745 | D25: 统计学 | E25: 统计22-1班 | F25: 2025年中国大学生创新设计大赛北京市三等奖-绿能绿存--近零碳中高温智能储热装置 | G25: A类 | H25: 省部级 | K25: 1.5 | L25: 3/10 | M25: =K25/8 -> 0.1875
A26: 24 | B26: 吴炅 | C26: 2022011767 | D26: 统计学 | E26: 统计22-1班 | F26: 2024年中国大学生创新设计大赛北京市二等奖-绿能先锋--实现工业能耗碳双控新方案 | G26: A类 | H26: 省部级 | K26: 2.4 | L26: 3/9 | M26: =K26/8 -> 0.3
A27: 25 | B27: 吴炅 | C27: 2022011767 | D27: 统计学 | E27: 统计22-1班 | F27: 2025年中国大学生创新设计大赛北京市三等奖-绿能绿存--近零碳中高温智能储热装置 | G27: A类 | H27: 省部级 | K27: 1.5 | L27: 2/10 | M27: =K27/4 -> 0.375
A28: 26 | B28: 吴炅 | C28: 2022011767 | D28: 统计学 | E28: 统计22-1班 | F28: 2024年中国大学生创新设计大赛北京市三等奖-虚拟铸魂重现铁人一基于虚拟现实技术打造沉浸 式体验红色教育基地 | G28: A类 | H28: 省部级 | K28: 1.5 | L28: 3/13 | M28: =K28/8 -> 0.1875
A29: 27 | B29: 陈凯炫 | C29: 2022011859 | D29: 应用化学 | E29: 应化22-2班 | F29: 第三届"创青春"中国青年碳中和创新创业大赛-学术组-特等奖 | G29: B类 | H29: 国家级 | I29: 是 | J29: 是 | K29: 4.8 | L29: 1/10 | M29: =K29/2 -> 2.4
A30: 28 | B30: 陈凯炫 | C30: 2022011859 | D30: 应用化学 | E30: 应化22-2班 | F30: 第三届"创青春"中国青年碳中和创新创业大赛-创新组-银奖 | G30: B类 | H30: 国家级 | I30: 是 | J30: 是 | K30: 3.2 | L30: 1/10 | M30: =K30/2 -> 1.6
A31: 29 | B31: 陈凯炫 | C31: 2022011859 | D31: 应用化学 | E31: 应化22-2班 | F31: 第三届国际大学生化学奥林匹克竞赛铜奖 | G31: B类 | H31: 国家级 | K31: 2 | L31: 1/1 | M31: 2
A32: 30 | B32: 龚卓洋 | C32: 2022011856 | D32: 应用化学 | E32: 应化22-2班 | F32: 第三届国际大学生化学奥林匹克竞赛铜奖 | G32: B类 | H32: 国家级 | K32: 2 | L32: 1/1 | M32: 2
A33: 31 | B33: 龚卓洋 | C33: 2022011856 | D33: 应用化学 | E33: 应化22-2班 | F33: 全国大学生数学竞赛全国二等奖 | G33: B类 | H33: 国家级 | K33: 3.2 | L33: 1/1 | M33: 3.2
A34: 32 | B34: 冯家乐 | C34: 2022011861 | D34: 应用化学 | E34: 应化22-2班 | F34: 全国大学生英语写作大赛二等奖 | G34: D类 | H34: 国家级 | K34: 1.6 | L34: 1/1 | M34: 1.6
A35: 33 | B35: 冯家乐 | C35: 2022011861 | D35: 应用化学 | E35: 应化22-2班 | F35: 全国大学生英语能力翻译竞赛一等奖 | G35: D类 | H35: 国家级 | K35: 2 | L35: 1/1 | M35: 2
A36: 34 | B36: 冯家乐 | C36: 2022011861 | D36: 应用化学 | E36: 应化22-2班 | F36: 第九届中国国际“互联网+”大学生创新创业大赛北京赛区复赛高教主赛道二等奖-滤方科技--做尾气处理的引领者 | G36: A类 | H36: 国家级 | K36: 2.4 | L36: 3/15 | M36: =K36/8 -> 0.3
A37: 35 | B37: 巨博雅 | C37: 2022011806 | D37: 应用化学 | E37: 应化22-1班 | F37: “青创北京”2025年“挑战杯”首都大学生课外学术科技作品竞赛中“青振京郊”乡村振兴专项赛获北京市二等奖-泉乡颐养--“五域并举”打造“京郊康养第一村” | G37: A类 | H37: 国家级 | K37: 2.4 | L37: 3/7 | M37: =K37/8 -> 0.3
A38: 36 | B38: 巨博雅 | C38: 2022011806 | D38: 应用化学 | E38: 应化22-1班 | F38: “青创北京”2025年“挑战杯”首都大学生课外学术科技作品竞赛中“青振京郊”乡村振兴专项赛获北京市二等奖-深化底蕴，艺术赋能--宋庄红色美丽乡村品牌化建设及推广 | G38: A类 | H38: 国家级 | K38: 2.4 | L38: 3/8 | M38: =K38/8 -> 0.3
A39: 37 | B39: 巨博雅 | C39: 2022011806 | D39: 应用化学 | E39: 应化22-1班 | F39: 2024年中国大学生创新设计大赛北京市三等奖-云旅红游--红旅IP赋能新时代乡村振兴长征路 | G39: A类 | H39: 省部级 | K39: 1.5 | L39: 13/15 | M39: 0.02
A40: 38 | B40: 巨博雅 | C40: 2022011806 | D40: 应用化学 | E40: 应化22-1班 | F40: 2024年中国大学生创新设计大赛北京市三等奖-虚拟铸魂重现铁人一基于虚拟现实技术打造沉浸式体验红色教育基地 | G40: A类 | H40: 省部级 | K40: 1.5 | L40: 7/13 | M40: 0.02
A41: 39 | B41: 巨博雅 | C41: 2022011806 | D41: 应用化学 | E41: 应化22-1班 | F41: 2024年中国大学生创新设计大赛北京市三等奖-绿能绿存--近零碳中高温智能储热装置 | G41: A类 | H41: 省部级 | K41: 1.5 | L41: 6/15 | M41: 0.02
A42: 40 | B42: 巨博雅 | C42: 2022011806 | D42: 应用化学 | E42: 应化22-1班 | F42: 2024年中国大学生创新设计大赛北京市三等奖-探岩“鉴”貌---智能岩石薄片鉴定科技aiRock | G42: A类 | H42: 省部级 | K42: 1.5 | L42: 3/15 | M42: =K42/8 -> 0.1875
A43: =ROW()-2 -> 41 | B43: 庞金平 | C43: 2022011810 | D43: 应用化学 | E43: 应化22-1班 | F43: 第三届国际大学生化学奥林匹克竞赛铜奖 | G43: B类 | H43: 国家级 | K43: 2 | L43: 1/1 | M43: 2
A44: 42 | B44: 庞金平 | C44: 2022011810 | D44: 应用化学 | E44: 应化22-1班 | F44: 全国大学生英语词汇大赛全国二等奖 | G44: D类 | H44: 国家级 | K44: 1.6 | L44: 1/1 | M44: 1.6
A45: 43 | B45: 张浩东 | C45: 2022011868 | D45: 应用化学 | E45: 应化22-2班 | F45: 第十五届全国大学生数学竞赛二等奖 | G45: B类 | H45: 国家级 | K45: 3.2 | L45: 1/1 | M45: 3.2
A46: 44 | B46: 张浩东 | C46: 2022011868 | D46: 应用化学 | E46: 应化22-2班 | F46: 第十六届全国大学生数学竞赛三等奖 | G46: B类 | H46: 国家级 | K46: 2 | L46: 1/1 | M46: 2
A47: 45 | B47: 张科萌 | C47: 2022011816 | D47: 应用化学 | E47: 应化22-1班 | F47: 华教杯全国大学生数学竞赛全国二等奖 | G47: D类 | H47: 国家级 | K47: 1.6 | L47: 1/1 | M47: 1.6
A48: 46 | B48: 张科萌 | C48: 2022011816 | D48: 应用化学 | E48: 应化22-1班 | F48: “BETT杯”全国大学生英语词汇大赛全国三等奖 | G48: D类 | H48: 国家级 | K48: 1 | L48: 1/1 | M48: 1
A49: 47 | B49: 张科萌 | C49: 2022011816 | D49: 应用化学 | E49: 应化22-1班 | F49: 2024年中国大学生创新设计大赛北京市三等奖-滤方科技--高效甲烷及炭烟颗粒物减排技术引领者 | G49: A类 | H49: 省部级 | K49: 1.5 | L49: 6/10 | M49: 0.02
A50: 48 | B50: 张科萌 | C50: 2022011816 | D50: 应用化学 | E50: 应化22-1班 | F50: 2024年中国大学生创新设计大赛北京市三等奖-虚拟铸魂重现铁人一基于虚拟现实技术打造沉浸 式体验红色教育基地 | G50: A类 | H50: 省部级 | K50: 1.5 | L50: 12/13 | M50: 0.02
A51: 49 | B51: 张科萌 | C51: 2022011816 | D51: 应用化学 | E51: 应化22-1班 | F51: 第九届中国国际“互联网+”大学生创新创业大赛北京赛区复赛高教主赛道二等奖-滤方科技--做尾气处理的引领者 | G51: A类 | H51: 省部级 | K51: 2.4 | L51: 5/15 | M51: =K51/16 -> 0.15
A52: 50 | B52: 闫鼎睿 | C52: 2022011850 | D52: 应用化学 | E52: 应化22-2班 | F52: 全国大学生英语作文竞赛全国三等奖 | G52: D类 | H52: 国家级 | K52: 1 | L52: 1/1 | M52: 1
A53: 51 | B53: 闫鼎睿 | C53: 2022011850 | D53: 应用化学 | E53: 应化22-2班 | F53: 全国大学生语言文字能力大赛二等奖 | G53: B类 | H53: 国家级 | K53: 3.2 | L53: 1/1 | M53: 3.2
A54: 52 | B54: 闫鼎睿 | C54: 2022011850 | D54: 应用化学 | E54: 应化22-2班 | F54: “中外传播杯”全国大学生英语语法大赛全国三等奖 | G54: D类 | H54: 国家级 | K54: 1 | L54: 1/1 | M54: 1
A55: =ROW()-2 -> 53 | B55: 邓楠 | C55: 2022011840 | D55: 应用化学 | E55: 应化22-2班 | F55: 全国大学生语言文字能力大赛二等奖 | G55: B类 | H55: 国家级 | K55: 1.6 | L55: 1/1 | M55: 1.6
A56: =ROW()-2 -> 54 | B56: 邓楠 | C56: 2022011840 | D56: 应用化学 | E56: 应化22-2班 | F56: “BETT杯”全国大学生英语词汇大赛全国一等奖 | G56: D类 | H56: 国家级 | K56: 2 | L56: 1/1 | M56: 2
A57: =ROW()-2 -> 55 | B57: 宋瑞瑞 | C57: 2022011800 | D57: 应用化学 | E57: 应化22-1班 | F57: “中外传播杯”全国大学生英语语法大赛全国三等奖 | G57: D类 | H57: 国家级 | K57: 1 | L57: 1/1 | M57: 1
A58: 56 | B58: 宋瑞瑞 | C58: 2022011800 | D58: 应用化学 | E58: 应化22-1班 | F58: 英语世界杯全国大学生翻译大赛全国三等奖 | G58: D类 | H58: 国家级 | K58: 1 | L58: 1/1 | M58: 1
A59: 57 | B59: 宋瑞瑞 | C59: 2022011800 | D59: 应用化学 | E59: 应化22-1班 | F59: 全国高校商务翻译（英语）能力挑战赛全国二等奖 | G59: D类 | H59: 国家级 | K59: 1.6 | L59: 1/1 | M59: 1.6
A60: 58 | B60: 周紫来 | C60: 2022011812 | D60: 应用化学 | E60: 应化22-1班 | F60: 第三届国际大学生化学奥林匹克竞赛鼓励奖 | G60: B类 | H60: 国家级 | K60: 1.2 | L60: 1/1 | M60: 1.2
A61: 59 | B61: 张成基 | C61: 2022011867 | D61: 应用化学 | E61: 应化22-2班 | F61: “青创北京”2024年“挑战杯首都大学生创业计划竞赛“青振京郊”乡村振兴专项赛金奖-探索乡村多元业态发展--以兴寿镇为例 | G61: A类 | H61: 省部级 | K61: 3 | L61: 2/6 | M61: =K61/4 -> 0.75
A62: 60 | B62: 张成基 | C62: 2022011867 | D62: 应用化学 | E62: 应化22-2班 | F62: 2024年中国大学生创新设计大赛北京市三等奖-虚拟铸魂重现铁人一基于虚拟现实技术打造沉浸 式体验红色教育基地 | G62: A类 | H62: 省部级 | K62: 1.5 | L62: 1/13 | M62: =K62/2 -> 0.75
A63: 61 | B63: 张成基 | C63: 2022011867 | D63: 应用化学 | E63: 应化22-2班 | F63: 2024年中国大学生创新设计大赛北京市三等奖-滤方科技--高效甲烷及炭烟颗粒物减排技术引领者 | G63: A类 | H63: 省部级 | K63: 1.5 | L63: 9/10 | M63: 0.02
A64: 62 | B64: 张成基 | C64: 2022011867 | D64: 应用化学 | E64: 应化22-2班 | F64: 2025年中国大学生创新设计大赛北京市二等奖-滤方科技--高效炭烟颗粒物减排技术国产化替代的引领者 | G64: A类 | H64: 省部级 | K64: 2.4 | L64: 10/14 | M64: 0.02
A65: 63 | B65: 张成基 | C65: 2022011867 | D65: 应用化学 | E65: 应化22-2班 | F65: 2025年中国大学生创新设计大赛北京市三等奖-化碳光热--全封闭轻型太阳能光热集热器 | G65: A类 | H65: 省部级 | K65: 1.5 | L65: 1/7 | M65: =K65/2 -> 0.75
A66: 64 | B66: 张津荣 | C66: 2022011814 | D66: 应用化学 | E66: 应化22-1班 | F66: 华教杯全国大学生数学竞赛全国三等奖 | G66: D类 | H66: 国家级 | K66: 1 | L66: 1/1 | M66: 1
A67: 65 | B67: 徐楷钦 | C67: 2022011864 | D67: 应用化学 | E67: 应化22-2班 | F67: 全国高校商务翻译（英语）能力挑战赛全国三等奖 | G67: D类 | H67: 国家级 | K67: 1 | L67: 1/1 | M67: 1
